[Event "German Bundesliga 2022-23"]
[Site "Germany"]
[Date "2022.10.22"]
[Round "1.7"]
[White "Wagner, Dennis"]
[Black "Yankelevich, Lev"]
[Result "1-0"]
[ECO "C84"]
[WhiteElo "2570"]
[BlackElo "2484"]
[Annotator "TA"]
[PlyCount "67"]
[EventDate "2022.10.21"]
[EventType "team-tourn"]
[EventCountry "GER"]
[SourceTitle "playchess.com"]
[Source "ChessBase"]
[SourceQuality "1"]
[TimeControl "40/6000+30:3000+30"]

{[%evp 15,67,14,15,11,19,15,7,14,19,17,11,7,10,5,20,9,22,33,9,21,31,34,32,21,65,65,71,62,105,106,115,132,151,95,202,200,247,241,312,276,295,300,276,281,364,341,457,457,451,449,441,438,1356,1316]} 1. e4 {[%emt 0:00:05]} e5 {[%emt 0:00:28]} 2. Nf3 {[%emt 0:00:06]} Nc6 {[%emt 0:00:04]} 3. Bb5 {[%emt 0:00:10]} a6 {[%emt 0:00:06]} 4. Ba4 {[%emt 0:00:05]} Nf6 {[%emt 0:00:06]} 5. O-O {[%emt 0:00:20]} Be7 {[%emt 0:00:33]} 6. d3 {[%emt 0:00:18]} b5 {[%emt 0:00:27]} 7. Bb3 {[%emt 0:00:04]} d6 {[%emt 0:00:03]} 8. a4 {[%emt 0:00:21]} Bd7 {[%emt 0:00:08]} 9. Be3 {[%emt 0:00:31] C84: Closed Ruy Lopez: Unusual White 6th moves.} O-O {[%emt 0:06:52]} 10. axb5 {[%emt 0:00:07]} axb5 {[%emt 0:00:03]} 11. Nc3 {[%emt 0:00:07] The position is equal.} Na5 {[%emt 0:03:15]} 12. Nd5 {[%emt 0:01:35]} Nxd5 {[%emt 0:01:53]} 13. Bxd5 {[%emt 0:00:08]} c6 {[%emt 0:01:57][%cal Bc7c6,Bc6c5][%mdl 32]} 14. Ba2 {[%emt 0:00:06]} c5 {[%emt 0:24:58]} 15. Bd5 {[%emt 0:00:11]} Bc6 {[%emt 0:02:38]} 16. b4 {[%emt 0:15:14]} Bxd5 {[%emt 0:05:28]} 17. exd5 {[%emt 0:00:03]} cxb4 {[%emt 0:00:03]} 18. Qb1 {[%emt 0:10:11]} b3 {[%emt 0:02:11]} 19. cxb3 {[%emt 0:02:10]} b4 {[%emt 0:09:49] [#]} 20. Ra4 $146 {[%emt 0:10:04]} ({Predecessor:} 20. d4 Qd7 21. dxe5 dxe5 22. Rd1 f6 23. Qa2 Qb7 24. d6 Bd8 25. Nd2 Rc8 26. Nc4 Nxc4 27. bxc4 {½-½ (48) Dominguez Perez,L (2758)-Santos Latasa,J (2575) Chess.com INT 2020}) 20... Rb8 {[%emt 0:12:21]} 21. Qa2 {[%emt 0:10:59]} Rb5 {[%emt 0:05:08]} 22. Ra1 {[%emt 0:00:06][%cal Ra4a5]} Nb7 {[%emt 0:00:05]} 23. Ra7 $1 {[%emt 0:04:04] Hoping for Qa6.} Nc5 {[%emt 0:02:44] Inhibits Qa6.} 24. Qc2 $1 {[%emt 0:12:05] Threatens to win with d4. White has more active pieces. The black rooks are badly placed.} Bf6 {[%emt 0:00:39]} (24... Rb8 $16) 25. Qc4 $1 $18 {[%emt 0:01:02]} Qb8 {[%emt 0:11:38][%cal Oe5e4] [#]} 26. Nd2 {[%emt 0:06:46] Prevents e4.} Rb7 {[%emt 0:05:36]} 27. Bxc5 {[%emt 0:01:43]} dxc5 {[%emt 0:00:04] [#]} 28. Rxb7 {[%emt 0:02:37]} (28. Qxc5 Rc8 29. Rxb7 Qxb7 $11) 28... Qxb7 {[%emt 0:02:06]} 29. Ne4 {[%emt 0:00:07]} ({And not} 29. Qxc5 Rc8 30. Ra7 Rxc5 $11) 29... Rd8 {[%emt 0:02:28]} 30. d6 {[%emt 0:02:02] Prevents Be7.} ({Worse is} 30. Qxc5 Rxd5 31. Nxf6+ gxf6 $11) ({Weaker is} 30. Nxc5 Qxd5 31. Ra7 Qxc4 32. bxc4 e4 33. Nxe4 Be5 $11) 30... Qc8 {[%emt 0:00:30]} 31. Ra7 {[%emt 0:04:38] White is clearly winning.} Qe6 {[%emt 0:00:06]} 32. Qxe6 {[%emt 0:00:14]} fxe6 {[%emt 0:00:02]} 33. g4 {[%emt 0:02:58] Black must now prevent g5.} Rc8 {[%emt 0:00:53]} (33... Kf8 $142 34. g5 Bxg5 35. Nxg5 Rxd6) 34. Rc7 {[%emt 0:02:37] Weighted Error Value: White=0.00 (flawless) /Black=0.28 (precise)} 1-0

[Event "German Bundesliga 2022-23"]
[Site "Germany"]
[Date "2022.10.22"]
[Round "1.7"]
[White "Schmidek, Emil"]
[Black "Ribli, Zoltan"]
[Result "1-0"]
[ECO "D31"]
[WhiteElo "2414"]
[BlackElo "2526"]
[Annotator "TA"]
[PlyCount "39"]
[EventDate "2022.10.21"]
[EventType "team-tourn"]
[EventCountry "GER"]
[SourceTitle "playchess.com"]
[Source "ChessBase"]
[SourceQuality "1"]
[TimeControl "40/6000+30:3000+30"]

{[%evp 16,39,0,0,27,20,22,12,0,1,51,54,91,34,9,30,34,17,377,375,346,334,890,874,870,791]} 1. d4 {[%emt 0:00:03]} d5 {[%emt 0:00:06]} 2. c4 {[%emt 0:00:05]} e6 {[%emt 0:00:04]} 3. Nc3 {[%emt 0:00:08]} c6 {[%emt 0:00:04]} 4. e4 {[%emt 0:00:07]} dxe4 {[%emt 0:00:05]} 5. Nxe4 {[%emt 0:00:06]} Bb4+ {[%emt 0:00:03]} 6. Bd2 {[%emt 0:00:13][%cal Bc1d2,Bd2b4,Bb4a5,Ba5c3][%mdl 32]} Qxd4 {[%emt 0:00:04]} 7. Bxb4 {[%emt 0:00:08]} Qxe4+ {[%emt 0:00:02]} 8. Be2 {[%emt 0:00:10]} Na6 {[%emt 0:00:07]} 9. Ba5 {[%emt 0:01:21][%csl Ga5][%cal Rd1d8]} b6 {[%emt 0:05:25] [#] D31: Queen's Gambit Declined: Semi-Slav without ...Nf6 (+ Marshall Gambit and Noteboom) and Exchange Variation lines without ...Nf6.} 10. Qd6 $1 {[%emt 0:00:00][%cal Oe1c1][%mdl 1024] Black must now prevent 0-0-0! White has compensation.} Bd7 {[%emt 0:00:10]} (10... Ne7 $2 11. O-O-O $1 O-O 12. Qxe7 $18) 11. Bc3 {[%emt 0:00:00]} f6 {[%emt 0:03:44] The position is equal.} 12. Nf3 {[%emt 0:01:38][%cal Of3g5]} Ne7 {[%emt 0:10:25]} (12... Rd8 $11) 13. O-O-O $14 {[%emt 0:01:57] Threatens to win with Rhe1.} ({Reject} 13. Rd1 Rd8 $15) 13... Qxe2 {[%emt 0:04:41]} 14. Qxd7+ {[%emt 0:00:52]} Kf7 $132 {[%emt 0:00:04][%mdl 2048] aiming for ...Rhd8. Black is not holding back} 15. Rhe1 {[%emt 0:00:25][%cal Bh1e1,Be1e3,Be3f3][%mdl 32]} Qxc4 {[%emt 0:00:10]} 16. Re3 {[%emt 0:03:08] [#] The board is on fire.} ({Wrong is} 16. Kb1 $2 Rhd8 17. Rd4 Rxd7 $19) 16... Rad8 $146 {[%emt 0:22:16][%mdl 8192] [#] Black cannot hold the game after this.} (16... Qxa2 $2 {[#]} 17. Ng5+ $1 {[%mdl 512]} Kg6 18. Qxe7 Qa1+ 19. Kc2 Qa4+ 20. b3 $18) (16... Rhe8 $1 $11 {and Black has nothing to worry.} 17. b3 Qg4) ({Predecessor:} 16... Rhe8 17. b3 Qg4 18. h3 Qf4 19. Rd4 Qh6 20. Qxe6+ Kf8 21. Rh4 Nc5 22. Qc4 Qg6 {½-½ (94) Vitiugov,N (2687)-Romanov,E (2576) Moscow 2009}) 17. Ne5+ $1 {[%emt 0:09:02][%mdl 512]} fxe5 {[%emt 0:00:05]} 18. Rf3+ {[%emt 0:00:11][%mdl 64] Deflection} Kg6 $2 {[%emt 0:00:06]} (18... Qf4+ 19. Rxf4+ exf4 20. Qxa7 Nc5) 19. Qxe7 $18 {[%emt 0:01:35] White wants to mate with Rg3+.} Rxd1+ {[%emt 0:04:13]} 20. Kxd1 {[%emt 0:00:13] Weighted Error Value: White=0.01 (flawless) /Black=0.65} 1-0

[Event "German Bundesliga 2022-23"]
[Site "Germany"]
[Date "2022.10.23"]
[Round "1.7"]
[White "Reck, Moritz"]
[Black "Meissner, Felix"]
[Result "0-1"]
[ECO "A00"]
[WhiteElo "2161"]
[BlackElo "2369"]
[Annotator "ChessBase"]
[PlyCount "84"]
[EventDate "2022.10.21"]
[EventType "team-tourn"]
[EventCountry "GER"]
[SourceTitle "playchess.com"]
[Source "ChessBase"]
[SourceQuality "1"]
[TimeControl "40/6000+30:3000+30"]

1. e4 d5 2. Nc3 d4 3. Nce2 e5 4. d3 c5 5. g3 Nc6 6. Bg2 Bd6 7. f4 exf4 8. Bxf4 Nf6 9. h3 Nh5 10. Nf3 Nxf4 11. Nxf4 O-O 12. O-O Ne5 13. c3 Nxf3+ 14. Rxf3 Be5 15. Qb3 a5 16. a4 Ra6 17. c4 Rb6 18. Qc2 Rf6 19. Raf1 Qd6 20. Qd2 b6 21. Kh1 Rh6 22. Qf2 Bg4 23. Kg1 Bxf3 24. Qxf3 Rf6 25. Qg4 g6 26. h4 h6 27. Bh3 Kh7 28. Rf3 Qd8 29. Nd5 h5 30. Nxf6+ Qxf6 31. Rxf6 hxg4 32. Rxb6 gxh3 33. Kh2 f5 34. exf5 Rxf5 35. Rc6 Rf3 36. Rxc5 Bxg3+ 37. Kxh3 Bd6+ 38. Kg2 Rg3+ 39. Kf2 Bxc5 40. Kxg3 Kg7 41. Kg4 Kf6 42. h5 gxh5+ 0-1

[Event "German Bundesliga 2022-23"]
[Site "Germany"]
[Date "2022.10.22"]
[Round "1.8"]
[White "Berchtenbreiter, Maximilian"]
[Black "Buhmann, Rainer"]
[Result "0-1"]
[ECO "C90"]
[WhiteElo "2509"]
[BlackElo "2561"]
[Annotator "TA"]
[PlyCount "72"]
[EventDate "2022.10.21"]
[EventType "team-tourn"]
[EventCountry "GER"]
[SourceTitle "playchess.com"]
[Source "ChessBase"]
[SourceQuality "1"]
[TimeControl "40/6000+30:3000+30"]

{[%evp 17,72,21,25,18,17,18,30,13,18,11,29,0,22,0,12,10,8,0,6,0,0,-38,0,-123,-136,-166,-176,-172,-180,-172,-170,-314,-310,-341,-339,-347,-354,-325,-344,-341,-334,-306,-295,-491,-479,-721,-727,-1933,-1285,-29985,-29986,-29986,-29987,-29987,-29988,-29989,-29988]} 1. e4 {[%emt 0:00:13]} e5 {[%emt 0:00:09]} 2. Nf3 {[%emt 0:00:06]} Nc6 {[%emt 0:00:06]} 3. Bb5 {[%emt 0:00:54]} a6 {[%emt 0:00:24]} 4. Ba4 {[%emt 0:00:05]} Nf6 {[%emt 0:00:08]} 5. O-O {[%emt 0:00:19]} Be7 {[%emt 0:00:30]} 6. Re1 {[%emt 0:00:22]} b5 {[%emt 0:00:23]} 7. Bb3 {[%emt 0:00:03]} d6 {[%emt 0:00:24]} 8. a4 {[%emt 0:00:58]} Bd7 {[%emt 0:00:56]} 9. c3 {[%emt 0:01:44]} O-O {[%emt 0:01:04]} 10. Bc2 {[%emt 0:11:22] C90: Closed Ruy Lopez with 7...d6: Early deviations.} (10. d4 {with more complications.} Bg4 11. Be3 Na5 12. Bc2) 10... Re8 {[%emt 0:04:45]} 11. h3 {[%emt 0:00:11]} Bf8 {[%emt 0:02:29]} 12. d3 {[%emt 0:01:45] White has an edge.} h6 {[%emt 0:01:19]} 13. Nbd2 {[%emt 0:02:09][%cal Bb1d2,Bd2f1,Bf1g3][%mdl 32]} Ne7 {[%emt 0:00:30]} 14. Nf1 {[%emt 0:00:30]} Ng6 {[%emt 0:00:30]} 15. Ng3 {[%emt 0:03:03]} c5 {[%emt 0:08:58]} 16. d4 {[%emt 0:03:23]} cxd4 {[%emt 0:05:55]} 17. cxd4 {[%emt 0:00:04]} exd4 {[%emt 0:03:23]} 18. Nxd4 {[%emt 0:03:24] [#]} bxa4 $146 {[%emt 0:05:00]} ({Predecessor:} 18... Rc8 19. axb5 axb5 20. Bd3 d5 21. exd5 Rxe1+ 22. Qxe1 Qb6 23. Ne6 Nxd5 24. Nxf8 Rxf8 {0-1 (38) Ermitsch,M (2234)-Fromm,M (2391) Kiel 2022}) 19. f4 {[%emt 0:09:58]} Rc8 {[%emt 0:10:05]} 20. Kh2 {[%emt 0:07:47]} (20. Bxa4 $11 d5 21. e5) 20... d5 {[%emt 0:25:08][%cal Of6g4] Black is more active. White is on the road to losing.} 21. e5 {[%emt 0:07:52] [#]} Ng4+ {[%emt 0:01:13][%mdl 512]} 22. hxg4 {[%emt 0:03:35] And now Ngf5 would win.} Qh4+ {[%emt 0:00:07][%mdl 64] Deflection, Double Attack} 23. Kg1 {[%emt 0:00:01] Black must now prevent Ngf5.} Qxg3 {[%emt 0:05:06]} 24. Bxg6 {[%emt 0:02:08]} (24. Re3 $142 Qxg4 25. Qxg4 Bxg4 26. Bxa4) 24... fxg6 $19 {[%emt 0:11:33]} 25. Be3 {[%emt 0:09:25][%cal Oe5e6] [#]} Bb4 $1 {[%emt 0:07:15][%cal Bf8b4,Bb4e1,Be1f2][%mdl 32]} (25... Bxg4 26. Qd2 Bh3 27. Rxa4 $17) (25... Qxg4 26. Qxg4 Bxg4 27. Rxa4 $17) 26. e6 {[%emt 0:07:39]} Bxe1 {[%emt 0:07:44] The board is on fire.} 27. exd7 {[%emt 0:00:05]} Qxe3+ {[%emt 0:00:26]} 28. Kh1 {[%emt 0:00:02]} Bf2 {[%emt 0:03:03]} ({Not} 28... Qxf4 29. dxc8=R Qf1+ 30. Kh2 Qf4+ 31. Kh1 Qf1+ 32. Kh2 Qf4+ 33. Kh1 $11) 29. Nf3 {[%emt 0:03:45]} d4 {[%emt 0:02:07][%cal Bd5d4,Bd4d3,Bd3d2][%mdl 32]} ({Wrong is} 29... Qxf4 $2 30. Rxa4 d4 31. Nxd4) 30. Qf1 $2 {[%emt 0:10:46]} (30. dxe8=R+ Qxe8 31. Ne5) 30... d3 {[%emt 0:02:11]} 31. Ne5 {[%emt 0:01:34]} (31. Rd1 $142 Qe2 32. Ne5 Qxf1+ 33. Rxf1) 31... d2 {[%emt 0:02:00]} 32. Qc4+ {[%emt 0:00:02]} Kh7 {[%emt 0:00:25]} 33. Rf1 {[%emt 0:03:30]} Qg3 {[%emt 0:00:37][%cal Rg3h4] Black mates.} 34. Nxg6 {[%emt 0:01:08]} Qxg4 {[%emt 0:00:56]} ({Weaker is} 34... Rxc4 35. dxe8=Q Rxf4 36. Nxf4 Qxf4 37. Qe2 $15) 35. dxc8=Q {[%emt 0:04:45]} Rxc8 {[%emt 0:00:06]} 36. Qd3 {[%emt 0:00:19]} Qxg6 {[%emt 0:00:05] Weighted Error Value: White=0.91/Black=0.04 (flawless)} 0-1

[Event "German Bundesliga 2022-23"]
[Site "Germany"]
[Date "2022.10.23"]
[Round "1.8"]
[White "Bracker, Frank"]
[Black "Kuebler, Marcus"]
[Result "1-0"]
[ECO "B38"]
[WhiteElo "2372"]
[BlackElo "1948"]
[Annotator "ChessBase"]
[PlyCount "33"]
[EventDate "2022.10.21"]
[EventType "team-tourn"]
[EventCountry "GER"]
[SourceTitle "playchess.com"]
[Source "ChessBase"]
[SourceQuality "1"]
[TimeControl "40/6000+30:3000+30"]

1. e4 c5 2. Nf3 Nc6 3. d4 cxd4 4. Nxd4 g6 5. c4 Bg7 6. Be3 d6 7. Nc3 Nf6 8. Be2 O-O 9. O-O Bd7 10. h3 Nxd4 11. Bxd4 Bc6 12. Qc2 a5 13. Rad1 Nd7 14. Bxg7 Kxg7 15. Bg4 f5 16. exf5 gxf5 {[%emt 0:08:00]} 17. Bxf5 {[%emt 0:08:30]} 1-0

[Event "German Bundesliga 2022-23"]
[Site "Germany"]
[Date "2022.10.23"]
[Round "1.9"]
[White "Vitiugov, Nikita"]
[Black "Cheparinov, Ivan"]
[Result "1-0"]
[ECO "D28"]
[WhiteElo "2722"]
[BlackElo "2689"]
[Annotator "TA"]
[PlyCount "69"]
[EventDate "2022.10.21"]
[EventType "team-tourn"]
[EventCountry "GER"]
[SourceTitle "playchess.com"]
[Source "ChessBase"]
[SourceQuality "1"]
[TimeControl "40/6000+30:3000+30"]

{[%evp 19,69,18,19,4,16,26,21,22,45,66,82,73,68,80,120,119,139,118,134,107,118,105,115,57,72,65,81,18,106,108,139,133,175,189,182,185,183,187,177,183,191,182,186,178,207,191,207,199,206,191,216,199]} 1. d4 d5 2. c4 dxc4 3. Nf3 Nf6 4. e3 e6 5. Bxc4 c5 6. O-O Nc6 7. Qe2 {[%emt 0:13:30]} a6 {[%emt 0:13:30]} 8. Rd1 {[%emt 0:00:30]} b5 {[%emt 0:00:30]} 9. dxc5 {[%emt 0:00:30]} Qc7 {[%emt 0:00:30]} 10. Bd3 {[%emt 0:00:30]} Nb4 {[%emt 0:00:30] now scores much better than the old 10...Bxc5.} 11. a4 {[%emt 0:00:30] D28: Queen's Gambit Accepted: Classical main line: 7 Qe2 with early ...Nc6.} Nxd3 {[%emt 0:00:30]} 12. Qxd3 {[%emt 0:00:30]} b4 {[%emt 0:00:30]} 13. b3 {[%emt 0:00:30][%cal Oc5c6] [#] The position is equal.} a5 $146 {[%emt 0:00:30]} ({Predecessor:} 13... Bxc5 14. Nbd2 O-O 15. Bb2 Rd8 16. Qc4 Bb7 17. Bxf6 gxf6 18. Ne4 Bxe4 19. Qxe4 Be7 {½-½ (27) Fremmegaard,J (2151)-Clark,R (2125) ICCF email 2017}) 14. c6 {[%emt 0:00:30]} Be7 {[%emt 0:00:30]} 15. Bb2 {[%emt 0:00:30]} Qxc6 {[%emt 0:00:30]} 16. Ne5 {[%emt 0:00:30]} Qc7 {[%emt 0:00:30]} 17. Qb5+ {[%emt 0:00:30]} (17. Rc1 Qd6 $14) 17... Kf8 {[%emt 0:00:30] [#]} 18. Rc1 $1 {[%emt 0:00:30]} Qd8 {[%emt 0:00:30]} 19. Nc6 {[%emt 0:00:30] White has more active pieces. The black rooks are badly placed.} Bd7 {[%emt 0:00:30]} 20. Nxd8 {[%emt 0:00:30]} Bxb5 {[%emt 0:00:30]} 21. Nxe6+ {[%emt 0:00:30]} (21. axb5 $16 Bxd8 22. Nd2) 21... fxe6 $14 {[%emt 0:00:30]} 22. axb5 {[%emt 0:00:30][%cal Ba4b5,Bb5b6][%mdl 32] Black must now prevent Nd2.} Kf7 {[%emt 0:00:30]} 23. Be5 {[%emt 0:00:30]} ({White should try} 23. Nd2 $16 {Strongly threatening b6.} Rhb8 24. Rc7) 23... Rhd8 {[%emt 0:00:30] [#]} (23... Nd7 $11 24. Bc7 Rhc8) 24. Bc7 $1 $36 {[%emt 0:00:30][%csl LRa5,LRd8][%mdl 2048] White has strong initiative.} Rac8 {[%emt 0:00:30][%cal Oc8c7]} 25. b6 {[%emt 0:00:30][%cal Ob1d2] White is clearly better.} Nd5 {[%emt 0:00:30]} 26. Nd2 {[%emt 0:00:30]} ({Not} 26. Rxa5 $2 Nxb6 27. Kf1 Nd5 $19) 26... Nxc7 {[%emt 0:00:30]} 27. Rxc7 {[%emt 0:00:30]} Rxc7 {[%emt 0:00:30]} 28. bxc7 $18 {[%emt 0:00:30][%mdl 4096] Endgame KRB-KRN} Rc8 {[%emt 0:00:30]} 29. Rxa5 {[%emt 0:00:30]} ({Don't play} 29. Rc1 $6 Ke8 $16) 29... Rxc7 {[%emt 0:00:30]} 30. Nc4 {[%emt 0:00:30]} Bf6 {[%emt 0:00:30]} 31. Kf1 {[%emt 0:00:30]} Bc3 {[%emt 0:00:30]} 32. Ke2 {[%emt 0:00:30]} Ke7 {[%emt 0:00:30]} 33. g4 {[%emt 0:00:30]} Rd7 {[%emt 0:00:30]} 34. f4 {[%emt 0:00:30]} Kf6 {[%emt 0:00:30]} 35. Ra6 {[%emt 0:00:30] Weighted Error Value: White=0.11 (very precise) /Black=0.17 (very precise)} 1-0

[Event "German Bundesliga 2022-23"]
[Site "Germany"]
[Date "2022.10.22"]
[Round "1.9"]
[White "Ivanchuk, Vasyl"]
[Black "Narayanan.S.L"]
[Result "1/2-1/2"]
[ECO "C89"]
[WhiteElo "2678"]
[BlackElo "2663"]
[Annotator "TA"]
[PlyCount "63"]
[EventDate "2022.10.21"]
[EventType "team-tourn"]
[EventCountry "GER"]
[SourceTitle "playchess.com"]
[Source "ChessBase"]
[SourceQuality "1"]
[TimeControl "40/6000+30:3000+30"]

{[%evp 34,63,45,34,32,20,17,29,32,20,16,14,17,22,15,31,26,16,24,11,8,2,1,2,5,4,7,0,0,0,2,5]} 1. e4 {[%emt 0:00:04]} e5 {[%emt 0:00:08]} 2. Nf3 {[%emt 0:00:04]} Nc6 {[%emt 0:00:05]} 3. Bb5 {[%emt 0:00:05][%cal Bf1b5,Bb5a4,Ba4b3][%mdl 32]} a6 {[%emt 0:00:16]} 4. Ba4 {[%emt 0:00:06]} Nf6 {[%emt 0:00:05]} 5. O-O {[%emt 0:00:04]} Be7 {[%emt 0:00:11]} 6. Re1 {[%emt 0:00:05]} b5 {[%emt 0:00:04]} 7. Bb3 {[%emt 0:00:07]} O-O {[%emt 0:00:07]} 8. c3 {[%emt 0:00:15]} d5 {[%emt 0:00:14]} 9. exd5 {[%emt 0:00:06]} Nxd5 {[%emt 0:00:05]} 10. Nxe5 {[%emt 0:00:05]} Nxe5 {[%emt 0:00:06]} 11. Rxe5 {[%emt 0:00:02]} c6 {[%emt 0:00:11]} 12. Re1 {[%emt 0:00:58]} Bd6 {[%emt 0:00:36]} 13. d4 {[%emt 0:00:26]} Qh4 {[%emt 0:00:11]} 14. g3 {[%emt 0:00:05]} Qh3 {[%emt 0:00:05]} 15. Be3 {[%emt 0:00:08]} Bg4 {[%emt 0:01:31]} 16. Qd3 {[%emt 0:00:08]} Rae8 {[%emt 0:05:50]} 17. Nd2 {[%emt 0:00:18]} Re6 {[%emt 0:17:27]} 18. Qf1 {[%emt 0:01:32]} Qh5 $1 {[%emt 0:00:03] C89: Closed Ruy Lopez: Marshall Attack.} 19. f3 {[%emt 0:00:12]} Rxe3 {[%emt 0:04:56]} 20. fxg4 {[%emt 0:38:06]} Qxg4 {[%emt 0:00:17][%cal Od6g3] White has an edge.} 21. Rxe3 {[%emt 0:20:41]} Nxe3 {[%emt 0:00:14]} 22. Qf2 {[%emt 0:00:07]} Nd5 {[%emt 0:00:17]} 23. Qf3 {[%emt 0:00:20]} Qxf3 {[%emt 0:10:31]} 24. Nxf3 {[%emt 0:00:41]} Rb8 {[%emt 0:00:55]} 25. Re1 {[%emt 0:06:21]} Kf8 {[%emt 0:20:35] [#]} 26. Kf2 $146 {[%emt 0:08:00]} ({Predecessor:} 26. Ng5 h6 27. Ne4 Be7 28. Kf2 Nf6 29. Nxf6 {½-½ (29) Lovakovic,F (2444)-Simmelink,J (2469) LSS email 2017}) 26... Nf6 {[%emt 0:08:25] The position is equal.} 27. Ng5 {[%emt 0:06:27]} Rb7 {[%emt 0:00:20]} 28. Kf3 {[%emt 0:00:08]} h6 {[%emt 0:00:20]} 29. Ne4 {[%emt 0:00:05]} Re7 {[%emt 0:01:30]} 30. Re2 {[%emt 0:02:13]} Nxe4 {[%emt 0:00:07]} 31. Rxe4 {[%emt 0:00:05]} Rxe4 {[%emt 0:00:17]} 32. Kxe4 {[%emt 0:00:23] An even fight not without its subleties.  Weighted Error Value: White=0.04 (flawless) /Black=0.01 (flawless)} 1/2-1/2

[Event "German Bundesliga 2022-23"]
[Site "Germany"]
[Date "2022.10.22"]
[Round "1.9"]
[White "Nisipeanu, Liviu-Dieter"]
[Black "Moussard, Jules"]
[Result "1/2-1/2"]
[ECO "D35"]
[WhiteElo "2615"]
[BlackElo "2686"]
[Annotator "TA"]
[PlyCount "59"]
[EventDate "2022.10.21"]
[EventType "team-tourn"]
[EventCountry "GER"]
[SourceTitle "playchess.com"]
[Source "ChessBase"]
[SourceQuality "1"]
[TimeControl "40/6000+30:3000+30"]

{[%evp 15,59,9,20,0,21,22,32,24,33,27,44,26,31,12,16,10,20,0,7,3,28,32,25,0,0,0,0,0,0,0,0,0,0,0,0,0,0,0,0,0,0,0,0,0,0,0]} 1. d4 {[%emt 0:00:04]} Nf6 {[%emt 0:00:04]} 2. c4 {[%emt 0:00:05]} e6 {[%emt 0:00:05]} 3. Nc3 {[%emt 0:00:04]} d5 {[%emt 0:00:04]} 4. cxd5 {[%emt 0:01:34]} exd5 {[%emt 0:00:05]} 5. Bg5 {[%emt 0:00:05][%cal Bc1g5,Bg5h4,Bh4g3][%mdl 32]} c6 {[%emt 0:00:07]} 6. e3 {[%emt 0:00:05]} h6 {[%emt 0:00:09]} 7. Bh4 {[%emt 0:00:05]} Be7 {[%emt 0:00:06]} 8. Bd3 {[%emt 0:00:47]} O-O {[%emt 0:00:07]} 9. Nge2 $1 {[%emt 0:00:07][%mdl 4] is currently scoring better than 9.Qc2. D35: Queen's Gambit Declined: Exchange Variation.} Ne8 {[%emt 0:00:34]} (9... Ne4 $5 {[%cal Re4c3]} 10. Bxe7 Qxe7 $11) 10. Bg3 {[%emt 0:04:44]} Nd6 {[%emt 0:00:07]} 11. O-O {[%emt 0:05:28] White is slightly better.} Re8 {[%emt 0:00:15]} 12. Qc2 {[%emt 0:04:02]} Bf8 {[%emt 0:01:10] [#]} 13. Rad1 $146 {[%emt 0:12:08]} ({Predecessor:} 13. Rae1 a5 14. Nc1 Na6 15. a3 Be6 16. Nb3 Nc4 17. Ne2 a4 18. Bxc4 dxc4 19. Nd2 {1-0 (40) Bogner,S (2573)-Fressinet,L (2630) Germany 2022}) 13... a5 {[%emt 0:03:27]} 14. a3 {[%emt 0:11:54]} Nd7 {[%emt 0:03:19]} 15. h3 {[%emt 0:00:09]} Nf6 {[%emt 0:12:40]} 16. Be5 {[%emt 0:11:09]} Nfe4 {[%emt 0:27:47]} 17. Bxe4 {[%emt 0:07:14]} dxe4 {[%emt 0:09:11]} 18. Ng3 {[%emt 0:06:08]} f5 {[%emt 0:04:54]} 19. Nce2 {[%emt 0:01:39][%cal Bc3e2,Be2g3,Bg3f5][%mdl 32]} (19. f3 $5 {[%cal Rf3e4]}) 19... Nf7 {[%emt 0:08:54] The position is equal.} 20. f3 {[%emt 0:11:42]} exf3 {[%emt 0:14:49]} 21. Rxf3 {[%emt 0:00:24]} Nxe5 {[%emt 0:02:30]} 22. dxe5 {[%emt 0:00:07]} Qe7 {[%emt 0:05:23]} 23. Nxf5 {[%emt 0:06:15]} Qxe5 {[%emt 0:00:04]} 24. Neg3 {[%emt 0:05:33][%cal Of5h6] [#] Nxh6+! is the strong threat.} Bxf5 {[%emt 0:03:27]} 25. Nxf5 {[%emt 0:00:19]} Rad8 {[%emt 0:02:55] Prevents Rd7.} 26. Rdf1 {[%emt 0:01:45]} Rd7 {[%emt 0:02:58]} 27. Qc4+ {[%emt 0:11:16]} Kh7 {[%emt 0:02:11]} (27... Qd5 28. Qg4 Kh7 29. Nh4 $16 (29. Rg3 Qe6 $11)) 28. Qc2 {[%emt 0:01:11] Threatening mate with Ne7+.} Kg8 {[%emt 0:00:10]} 29. Qc4+ {[%emt 0:04:55]} Kh7 {[%emt 0:00:04]} ({Much less strong is} 29... Qd5 30. Qg4 Kh7 {[#]} 31. Nxh6 $1 $14 (31. Rg3 Qe6 $11)) 30. Qc2 {[%emt 0:00:04] Weighted Error Value: White=0.06 (flawless) /Black=0.03 (flawless)} 1/2-1/2